fUSD/lending_fUSD_20250219
["ID","MTS","AMOUNT","RATE_DAILY","PERIOD"]
[353690839,1739991076719,-705.7,0.0001153,2]
[353690840,1739991076729,-1007.94,0.0001153,2]
[353690841,1739991076740,-500.0,0.0001153,2]
[353690842,1739991076751,-500.0,0.0001153,2]
[353690843,1739991076762,-500.0,0.0001153,2]
[353690844,1739991076773,-474.39894195,0.0001153,2]
[353690845,1739991076784,-1100.17,0.0001153,2]
[353690846,1739991076795,-1164.92,0.0001153,2]
[353690847,1739991076806,-1009.77,0.0001153,2]
[353690848,1739991076816,-1086.24,0.0001153,2]
[353690849,1739991076827,-1103.11,0.0001153,2]
[353690850,1739991076837,-500.0,0.0001153,2]
[353690851,1739991076846,-500.0,0.0001153,2]
[353690852,1739991076856,-689.09,0.0001153,2]
[353690853,1739991076867,-500.0,0.0001153,2]
[353690854,1739991076876,-1109.15,0.0001153,2]
[353690855,1739991076887,-752.25,0.0001153,2]
[353690856,1739991076897,-712.53,0.0001153,2]
[353690857,1739991076913,-500.0,0.0001153,2]
[353690858,1739991076922,-500.0,0.0001153,2]
[353690859,1739991076932,-844.15,0.0001153,2]
[353690860,1739991076942,-1035.94,0.0001153,2]
[353690861,1739991076951,-1177.99,0.0001153,2]
[353690862,1739991076962,-494.0365912,0.0001153,2]
[353690863,1739991076973,-970.06,0.0001153,2]
[353690864,1739991076983,-842.16,0.0001153,2]
[353690865,1739991076993,-1231.95,0.0001153,2]
[353690866,1739991077003,-833.68,0.0001153,2]
[353690867,1739991077013,-1384.51,0.0001153,2]
[353690868,1739991077024,-992.43,0.0001153,2]
[353690869,1739991077034,-700.4,0.0001153,2]
[353690870,1739991077044,-896.41,0.0001153,2]
[353690871,1739991077055,-500.0,0.0001153,2]
[353690872,1739991077065,-835.28,0.0001153,2]
[353690873,1739991077075,-730.1,0.0001153,2]
[353690874,1739991077086,-638.47,0.0001153,2]
[353690875,1739991077096,-722.91,0.0001153,2]
[353690876,1739991077106,-700.98,0.0001153,2]
[353690877,1739991077115,-500.0,0.0001153,2]
[353690878,1739991077125,-887.61,0.0001153,2]
[353690879,1739991077135,-1299.23,0.0001153,2]
[353690880,1739991077145,-537.11,0.0001153,2]
[353690881,1739991077157,-1023.26,0.0001153,2]
[353690882,1739991077168,-500.0,0.0001153,2]
[353690883,1739991077178,-500.0,0.0001153,2]
[353690884,1739991077188,-1193.06,0.0001153,2]
[353690885,1739991077198,-809.28,0.0001153,2]
[353690886,1739991077208,-569.98,0.0001153,2]
[353690887,1739991077222,-947.29,0.0001153,2]
[353690888,1739991077232,-738.85,0.0001153,2]
[353690889,1739991077243,-500.0,0.0001153,2]
[353690890,1739991077254,-819.36,0.0001153,2]
[353690891,1739991077266,-504.01,0.0001153,2]
[353690892,1739991077276,-841.31,0.0001153,2]
[353690893,1739991077286,-716.57,0.0001153,2]
[353690894,1739991077296,-1059.78,0.0001153,2]
[353690895,1739991077307,-685.17,0.0001153,2]
[353690896,1739991077317,-948.49,0.0001153,2]
[353690897,1739991077327,-1210.93,0.0001153,2]
[353690898,1739991077336,-1232.61,0.0001153,2]
[353690899,1739991077346,-660.75,0.0001153,2]
[353690900,1739991077356,-722.62,0.0001153,2]
[353690901,1739991077366,-856.89,0.0001153,2]
[353690902,1739991077376,-500.0,0.0001153,2]
[353690903,1739991077385,-529.4,0.0001153,2]
[353690904,1739991077395,-500.0,0.0001153,2]
[353690905,1739991077407,-500.0,0.0001153,2]
[353690906,1739991077417,-500.0,0.0001153,2]
[353690907,1739991077427,-1123.65,0.0001153,2]
[353690908,1739991077441,-311.58945272,0.0001153,2]
[353690909,1739991077451,-500.0,0.0001153,2]
[353690910,1739991077461,-767.14,0.0001153,2]
[353690911,1739991077471,-500.0,0.0001153,2]
[353690912,1739991077481,-838.25,0.0001153,2]
[353690913,1739991077491,-349.48,0.0001153,2]
[353690914,1739991077500,-500.0,0.0001153,2]
[353690915,1739991077510,-857.74,0.0001153,2]
[353690916,1739991077522,-702.31,0.0001153,2]
[353690917,1739991077532,-500.0,0.0001153,2]
[353690918,1739991077542,-1022.47,0.0001153,2]
[353690919,1739991077552,-766.99,0.0001153,2]
[353690920,1739991077562,-1271.18,0.0001153,2]
[353690921,1739991077572,-562.14,0.0001153,2]
[353690922,1739991077583,-1255.93,0.0001153,2]
[353690923,1739991077594,-735.72,0.0001153,2]
[353690924,1739991077604,-1023.77,0.0001153,2]
[353690925,1739991077615,-500.0,0.0001153,2]
[353690926,1739991077625,-741.16,0.0001153,2]
[353690927,1739991077635,-500.0,0.0001153,2]
[353690928,1739991077646,-500.0,0.0001153,2]
[353690929,1739991077658,-500.0,0.0001153,2]
[353690930,1739991077668,-1492.46,0.0001153,2]
[353690931,1739991077679,-1211.99,0.0001153,2]
[353690932,1739991077688,-908.55,0.0001153,2]
[353690933,1739991077698,-1115.3,0.0001153,2]
[353690934,1739991077709,-622.28,0.0001153,2]
[353690935,1739991077718,-725.41,0.0001153,2]
[353690936,1739991077728,-1312.13,0.0001153,2]
[353690937,1739991077737,-500.0,0.0001153,2]
[353690938,1739991077747,-500.0,0.0001153,2]
[353690939,1739991077758,-1135.89,0.0001153,2]
[353690940,1739991077768,-500.0,0.0001153,2]
[353690941,1739991077778,-626.24,0.0001153,2]
[353690942,1739991077788,-873.22,0.0001153,2]
[353690943,1739991077798,-842.88,0.0001153,2]
[353690944,1739991077809,-828.64,0.0001153,2]
[353690945,1739991077818,-1067.13,0.0001153,2]
[353690946,1739991077828,-760.82,0.0001153,2]
[353690947,1739991077838,-959.81,0.0001153,2]
[353690948,1739991077848,-1130.2,0.0001153,2]
[353690949,1739991077859,-500.0,0.0001153,2]
[353690950,1739991077869,-621.03,0.0001153,2]
[353690951,1739991077879,-837.8,0.0001153,2]
[353690952,1739991077889,-500.0,0.0001153,2]
[353690953,1739991077900,-687.97,0.0001153,2]
[353690954,1739991077911,-500.0,0.0001153,2]
[353690955,1739991077922,-524.85,0.0001153,2]
[353690956,1739991077933,-763.25,0.0001153,2]
[353690957,1739991077943,-1453.26,0.0001153,2]
[353690958,1739991077954,-2178.41,0.0001153,2]
[353690959,1739991077964,-500.0,0.0001153,2]
[353690960,1739991077974,-2978.68,0.0001153,2]
[353690961,1739991077985,-867.64,0.0001153,2]
[353690962,1739991077996,-500.0,0.0001153,2]
[353690963,1739991078007,-167.4374265,0.0001153,2]
[353690964,1739991078017,-426.83652655,0.0001153,2]
[353690965,1739991078028,-500.0,0.0001153,2]
[353690966,1739991078040,-909.17,0.0001153,2]
[353690967,1739991078051,-659.34,0.0001153,2]
[353690968,1739991078062,-500.0,0.0001153,2]
[353690969,1739991078072,-500.0,0.0001153,2]
[353690970,1739991078082,-944.41,0.0001153,2]
[353690971,1739991078093,-1667.3,0.0001153,2]
[353690972,1739991078103,-1335.65,0.0001153,2]
[353690973,1739991078113,-1536.77,0.0001153,2]
[353690974,1739991078124,-500.0,0.0001153,2]
[353690975,1739991078134,-2300.26,0.0001153,2]
[353690976,1739991078146,-3967.01,0.0001153,2]
[353690977,1739991078160,-1054.96,0.0001153,2]
[353690978,1739991078171,-2151.49,0.0001153,2]
[353690979,1739991078182,-500.0,0.0001153,2]
[353690980,1739991078194,-1026.98,0.0001153,2]
[353690981,1739991078206,-1717.95,0.0001153,2]
[353690982,1739991078216,-723.0,0.0001153,2]
[353690983,1739991078227,-858.82,0.0001153,2]
[353690984,1739991078238,-736.71,0.0001153,2]
[353690985,1739991078248,-500.0,0.0001153,2]
[353690986,1739991078260,-731.07,0.0001153,2]
[353690987,1739991078272,-808.06,0.0001153,2]
[353690988,1739991078285,-500.0,0.0001153,2]
[353690989,1739991078297,-500.0,0.0001153,2]
[353690990,1739991078308,-1003.52,0.0001153,2]
[353690991,1739991078320,-500.0,0.0001153,2]
[353690992,1739991078331,-1216.45,0.0001153,2]
[353690993,1739991078342,-897.65,0.0001153,2]
[353690994,1739991078353,-969.77,0.0001153,2]
[353690995,1739991078365,-1228.25,0.0001153,2]
[353690996,1739991078376,-2264.91,0.0001153,2]
[353690997,1739991078387,-597.7,0.0001153,2]
[353690998,1739991078397,-500.0,0.0001153,2]
[353690999,1739991078412,-1031.26,0.0001153,2]
[353691000,1739991078423,-500.0,0.0001153,2]
[353691001,1739991078436,-813.49,0.0001153,2]
[353691002,1739991078446,-500.0,0.0001153,2]
[353691003,1739991078456,-943.59,0.0001153,2]
[353691004,1739991078467,-807.9,0.0001153,2]
[353691005,1739991078479,-952.43,0.0001153,2]
[353691006,1739991078491,-1249.19,0.0001153,2]
[353691007,1739991078503,-1931.39,0.0001153,2]
[353691008,1739991078514,-699.69,0.0001153,2]
[353691009,1739991078527,-736.37,0.0001153,2]
[353691010,1739991078537,-500.0,0.0001153,2]
[353691011,1739991078548,-1349.59,0.0001153,2]
[353691012,1739991078559,-2136.43,0.0001153,2]
[353691013,1739991078570,-500.0,0.0001153,2]
[353691014,1739991078581,-1308.13,0.0001153,2]
[353691015,1739991078592,-763.21,0.0001153,2]
[353691016,1739991078603,-500.0,0.0001153,2]
[353691017,1739991078613,-481.02423042,0.0001153,2]
[353691018,1739991078623,-676.6,0.0001153,2]
[353691019,1739991078634,-1669.19,0.0001153,2]
[353691020,1739991078645,-2496.14,0.0001153,2]
[353691021,1739991078659,-838.79,0.0001153,2]
[353691022,1739991078670,-500.0,0.0001153,2]
[353691023,1739991078680,-844.7,0.0001153,2]
[353691024,1739991078691,-500.0,0.0001153,2]
[353691025,1739991078703,-1038.95,0.0001153,2]
[353691026,1739991078715,-500.0,0.0001153,2]
[353691027,1739991078726,-643.34,0.0001153,2]
[353691028,1739991078736,-862.23,0.0001153,2]
[353691029,1739991078747,-1170.77,0.0001153,2]
[353691030,1739991078757,-1682.85,0.0001153,2]
[353691031,1739991078768,-972.98,0.0001153,2]
[353691032,1739991078779,-1036.38,0.0001153,2]
[353691033,1739991078789,-500.0,0.0001153,2]
[353691034,1739991078801,-665.65,0.0001153,2]
[353691035,1739991079043,-500.0,0.0001153,2]
[353691036,1739991079056,-816.32,0.0001153,2]
[353691037,1739991079067,-500.0,0.0001153,2]
[353691038,1739991079077,-1472.21,0.0001153,2]
[353691039,1739991079087,-1143.91,0.0001153,2]
[353691040,1739991079098,-7684.69,0.0001153,2]
[353691041,1739991079108,-500.0,0.0001153,2]
[353691042,1739991079118,-500.0,0.0001153,2]
[353691043,1739991079129,-1239.55,0.0001153,2]
[353691044,1739991079140,-1609.82,0.0001153,2]
[353691045,1739991079150,-694.56,0.0001153,2]
[353691046,1739991079162,-1000.0,0.0001153,2]
[353691047,1739991079173,-677.2,0.0001153,2]
[353691048,1739991079183,-500.0,0.0001153,2]
[353691049,1739991079194,-1545.54,0.0001153,2]
[353691050,1739991079203,-1288.85,0.0001153,2]
[353691051,1739991079214,-1349.76,0.0001153,2]
[353691052,1739991079224,-591.57,0.0001153,2]
[353691053,1739991079234,-500.0,0.0001153,2]
[353691054,1739991079244,-500.0,0.0001153,2]
[353691055,1739991079256,-1045.64,0.0001153,2]
[353691056,1739991079267,-544.71,0.0001153,2]
[353691057,1739991079278,-515.07,0.0001153,2]
[353691058,1739991079289,-500.0,0.0001153,2]
[353691059,1739991079299,-500.0,0.0001153,2]
[353691060,1739991079309,-864.21,0.0001153,2]
[353691061,1739991079319,-1217.73,0.0001153,2]
[353691062,1739991079330,-500.0,0.0001153,2]
[353691063,1739991079340,-1242.44,0.0001153,2]
[353691064,1739991079350,-608.9,0.0001153,2]
[353691065,1739991079360,-500.0,0.0001153,2]
[353691066,1739991079371,-500.0,0.0001153,2]
[353691067,1739991079381,-500.0,0.0001153,2]
[353691068,1739991079392,-1333.33,0.0001153,2]
[353691069,1739991079405,-2099.28,0.0001153,2]
[353691070,1739991079416,-646.88,0.0001153,2]
[353691071,1739991079427,-1098.74,0.0001153,2]
[353691072,1739991079440,-631.78,0.0001153,2]
[353691073,1739991079450,-1305.78,0.0001153,2]
[353691074,1739991079461,-814.94,0.0001153,2]
[353691075,1739991079471,-591.42,0.0001153,2]
[353691076,1739991079481,-500.0,0.0001153,2]
[353691077,1739991079491,-500.0,0.0001153,2]
[353691078,1739991079502,-1656.29,0.0001153,2]
[353691079,1739991079513,-1698.82,0.0001153,2]
[353691080,1739991079523,-500.0,0.0001153,2]
[353691081,1739991079533,-958.07,0.0001153,2]
[353691082,1739991079543,-1140.78,0.0001153,2]
[353691083,1739991079552,-1343.79,0.0001153,2]
[353691084,1739991079562,-500.0,0.0001153,2]
[353691085,1739991079571,-500.0,0.0001153,2]
[353691086,1739991079581,-3616.83,0.0001153,2]
[353691087,1739991079591,-1109.34,0.0001153,2]
[353691088,1739991079601,-940.17,0.0001153,2]
[353691089,1739991079611,-500.0,0.0001153,2]
[353691090,1739991079621,-1068.94,0.0001153,2]
[353691091,1739991079630,-500.0,0.0001153,2]
[353691092,1739991079640,-1192.02,0.0001153,2]
[353691093,1739991079650,-286.17583245,0.0001153,2]
[353691094,1739991079662,-1134.66,0.0001153,2]
[353691095,1739991079671,-500.0,0.0001153,2]
[353691096,1739991079681,-500.0,0.0001153,2]
[353691097,1739991079691,-1387.53,0.0001153,2]
[353691098,1739991079701,-500.0,0.0001153,2]
[353691099,1739991079710,-500.0,0.0001153,2]
[353691100,1739991079720,-525.63,0.0001153,2]
[353691101,1739991079730,-500.0,0.0001153,2]
[353691102,1739991079740,-1867.51,0.0001153,2]
[353691103,1739991079749,-1262.86,0.0001153,2]
[353691104,1739991079758,-1225.46,0.0001153,2]
[353691105,1739991079768,-500.0,0.0001153,2]
[353691106,1739991079778,-1283.85,0.0001153,2]
[353691107,1739991079787,-1033.15,0.0001153,2]
[353691108,1739991079797,-609.92199724,0.0001153,2]
[353691109,1739991079807,-1890.5,0.0001153,2]
[353691110,1739991079817,-500.0,0.0001153,2]
[353691111,1739991079827,-181.30891974,0.0001153,2]
[353691112,1739991079837,-182.042606,0.0001153,2]
[353691113,1739991079847,-1247.13,0.0001153,2]
[353691114,1739991079856,-500.0,0.0001153,2]
[353691115,1739991079866,-953.52,0.0001153,2]
[353691116,1739991079875,-701.13,0.0001153,2]
[353691117,1739991079885,-606.51,0.0001153,2]
[353691118,1739991079895,-500.0,0.0001153,2]
[353691119,1739991079905,-500.0,0.0001153,2]
[353691120,1739991079915,-837.99,0.0001153,2]
[353691121,1739991079924,-852.55,0.0001153,2]
[353691122,1739991079934,-1040.5,0.0001153,2]
[353691123,1739991079943,-626.51,0.0001153,2]
[353691124,1739991079953,-500.0,0.0001153,2]
[353691125,1739991079962,-500.0,0.0001153,2]
[353691126,1739991079971,-500.0,0.0001153,2]
[353691127,1739991079982,-1225.45,0.0001153,2]
[353691128,1739991079991,-500.0,0.00011531,2]
[353691129,1739991080001,-500.0,0.00011531,2]
[353691130,1739991080010,-711.12,0.00011531,2]
[353691131,1739991080020,-500.0,0.00011531,2]
[353691132,1739991080030,-500.0,0.00011531,2]
[353691133,1739991080039,-500.0,0.00011531,2]
[353691134,1739991080049,-567.75,0.00011531,2]
[353691135,1739991080058,-774.79,0.00011531,2]
[353691136,1739991080067,-648.92,0.00011531,2]
[353691137,1739991080077,-500.0,0.00011531,2]
[353691138,1739991080086,-500.0,0.00011531,2]
[353691139,1739991080095,-500.0,0.00011531,2]
[353691140,1739991080105,-151.0,0.00011531,2]
[353691141,1739991080114,-500.0,0.00011531,2]
[353691142,1739991080124,-939.76,0.00011531,2]
[353691143,1739991080133,-258.59,0.00011531,2]
[353691144,1739991080142,-186.02033412,0.00011531,2]
[353691145,1739991080154,-500.0,0.00011531,2]
[353691146,1739991080163,-726.31,0.00011531,2]
[353691147,1739991080172,-521.52024269,0.00011531,2]
[353691148,1739991080182,-527.6,0.00011531,2]
[353691149,1739991080191,-500.0,0.00011531,2]
[353691150,1739991080201,-637.14,0.00011531,2]
[353691151,1739991080211,-550.13,0.00011531,2]
[353691152,1739991080222,-501.4,0.00011531,2]
[353691153,1739991080231,-500.0,0.00011531,2]
[353691154,1739991080241,-605.64,0.00011531,2]
[353691155,1739991080251,-256.64192719,0.00011531,2]
[353691156,1739991080262,-280.49187289,0.00011531,2]
[353691157,1739991080272,-500.0,0.00011531,2]
[353691158,1739991080282,-500.0,0.00011531,2]
[353691159,1739991080292,-670.06,0.00011531,2]
[353691160,1739991080302,-500.0,0.00011531,2]
[353691161,1739991080314,-500.0,0.00011531,2]
[353691162,1739991080325,-500.0,0.00011531,2]
[353691163,1739991080336,-649.90656829,0.00011531,2]
[353691164,1739991080346,-741.15,0.00011531,2]
[353691165,1739991080355,-500.0,0.00011531,2]
[353691166,1739991080365,-917.52,0.00011531,2]
[353691167,1739991080374,-653.65,0.00011531,2]
[353691168,1739991080383,-500.0,0.00011531,2]
[353691169,1739991080392,-500.0,0.00011531,2]
[353691170,1739991080403,-500.0,0.00011531,2]
[353691171,1739991080412,-500.0,0.00011531,2]
[353691172,1739991080422,-575.12,0.00011531,2]
[353691173,1739991080432,-500.0,0.00011531,2]
[353691174,1739991080444,-1008.4,0.00011531,2]
[353691175,1739991080453,-526.13323524,0.00011531,2]
[353691176,1739991080462,-648.67,0.00011531,2]
[353691177,1739991080471,-500.0,0.00011531,2]
[353691178,1739991080483,-709.82,0.00011531,2]
[353691179,1739991080492,-500.0,0.00011531,2]
[353691180,1739991080501,-500.0,0.00011531,2]
[353691181,1739991080511,-759.69,0.00011531,2]
[353691182,1739991080523,-939.45,0.00011531,2]
[353691183,1739991080532,-934.24,0.00011531,2]
[353691184,1739991080542,-1565.74,0.00011531,2]
[353691185,1739991080552,-500.0,0.00011531,2]
[353691186,1739991080561,-779.39,0.00011531,2]
[353691187,1739991080571,-1114.74,0.00011531,2]
[353691188,1739991080580,-500.0,0.00011531,2]
[353691189,1739991080590,-500.0,0.00011531,2]
[353691190,1739991080600,-500.0,0.00011531,2]
[353691191,1739991080609,-500.0,0.00011531,2]
[353691192,1739991080619,-153.6800829,0.00011531,2]
[353691193,1739991080628,-522.43742761,0.00011531,2]
[353691194,1739991080638,-1307.87,0.00011531,2]
[353691195,1739991080647,-500.0,0.00011531,2]
[353691196,1739991080657,-1563.31,0.00011531,2]
[353691197,1739991080667,-500.0,0.00011531,2]
[353691198,1739991080677,-626.84,0.00011531,2]
[353691199,1739991080687,-500.0,0.00011531,2]
[353691200,1739991080696,-500.0,0.00011531,2]
[353691201,1739991080706,-1098.62,0.00011531,2]
[353691202,1739991080716,-602.42,0.00011531,2]
[353691203,1739991080726,-1563.53,0.00011531,2]
[353691204,1739991080736,-500.0,0.00011531,2]
[353691205,1739991080745,-1617.89,0.00011531,2]
[353691206,1739991080755,-568.32,0.00011531,2]
[353691207,1739991080765,-500.0,0.00011531,2]
[353691208,1739991080774,-500.0,0.00011531,2]
[353691209,1739991080784,-1902.45,0.00011531,2]
[353691210,1739991080794,-500.0,0.00011531,2]
[353691211,1739991080804,-997.72,0.00011531,2]
[353691212,1739991080815,-1224.85,0.00011531,2]
[353691213,1739991080825,-1076.75,0.00011531,2]
[353691214,1739991080834,-1287.1,0.00011531,2]
[353691215,1739991080844,-507.43,0.00011531,2]
[353691216,1739991080854,-1834.21,0.00011531,2]
[353691217,1739991080863,-427.24030299,0.00011531,2]
[353691218,1739991080872,-1131.11,0.00011531,2]
[353691219,1739991080882,-500.0,0.00011531,2]
[353691220,1739991080892,-1818.6,0.00011531,2]
[353691221,1739991080903,-967.39,0.00011531,2]
[353691222,1739991080912,-613.64,0.00011531,2]
[353691223,1739991080921,-500.0,0.00011531,2]
[353691224,1739991080931,-1954.75,0.00011531,2]
[353691225,1739991080941,-500.0,0.00011531,2]
[353691226,1739991080950,-1010.26,0.00011531,2]
[353691227,1739991080960,-500.0,0.00011531,2]
[353691228,1739991080969,-651.03,0.00011531,2]
[353691229,1739991080979,-825.62,0.00011531,2]
[353691230,1739991080989,-500.0,0.00011531,2]
[353691231,1739991080998,-500.0,0.00011531,2]
[353691232,1739991081008,-500.0,0.00011531,2]
[353691233,1739991081019,-500.0,0.00011531,2]
[353691234,1739991081029,-500.0,0.00011531,2]
[353691235,1739991081038,-1110.11,0.00011531,2]
[353691236,1739991081047,-774.36,0.00011531,2]
[353691237,1739991081058,-811.92,0.00011531,2]
[353691238,1739991081068,-1151.56,0.00011531,2]
[353691239,1739991081077,-500.0,0.00011531,2]
[353691240,1739991081086,-500.0,0.00011531,2]
[353691241,1739991081096,-1042.18,0.00011531,2]
[353691242,1739991081105,-500.0,0.00011531,2]
[353691243,1739991081115,-534.83,0.00011531,2]
[353691244,1739991081125,-361.10002796,0.00011531,2]
[353691245,1739991081136,-500.0,0.00011531,2]
[353691246,1739991081147,-619.91,0.00011531,2]
[353691247,1739991081157,-533.51,0.00011531,2]
[353691248,1739991081167,-581.26,0.00011531,2]
[353691249,1739991081178,-500.0,0.00011531,2]
[353691250,1739991081189,-500.0,0.00011531,2]
[353691251,1739991081199,-500.0,0.00011531,2]
[353691252,1739991081209,-500.0,0.00011531,2]
[353691253,1739991081219,-500.0,0.00011531,2]
[353691254,1739991081229,-500.0,0.00011531,2]
[353691255,1739991081238,-500.0,0.00011531,2]
[353691256,1739991081248,-500.0,0.00011531,2]
[353691257,1739991081258,-500.0,0.00011531,2]
[353691258,1739991081268,-849.02,0.00011531,2]
[353691259,1739991081277,-563.08,0.00011531,2]
[353691260,1739991081287,-758.16,0.00011531,2]
[353691261,1739991081296,-500.0,0.00011531,2]
[353691262,1739991081306,-500.0,0.00011531,2]
[353691263,1739991081315,-163.05610438,0.0001154,2]
[353691264,1739991081324,-150.0,0.00011555,2]
[353691265,1739991081334,-1893.0,0.00011558,2]
[353691266,1739991081343,-220.9629925,0.00011569,2]
[353691267,1739991081352,-1398.28713769,0.00011596,2]
[353691268,1739991081361,-3046.97846164,0.00011596,2]
[353691269,1739991081370,-842.88,0.00011611,2]
[353691270,1739991081380,-842.88,0.00011611,2]
[353691271,1739991081388,-842.88,0.00011611,2]
[353691272,1739991081461,-842.88,0.00011611,2]
[353691273,1739991081470,-500.0,0.00011612,2]
[353691274,1739991081480,-500.0,0.00011612,2]
[353691275,1739991081489,-500.0,0.00011612,2]
[353691276,1739991081498,-958.09,0.00011612,2]
[353691277,1739991081507,-500.0,0.00011612,2]
[353691278,1739991081518,-638.44,0.00011612,2]
[353691279,1739991081527,-1305.17,0.00011612,2]
[353691280,1739991081536,-500.0,0.00011612,2]
[353691281,1739991081545,-500.0,0.00011612,2]
[353691282,1739991081555,-500.0,0.00011612,2]
[353691283,1739991081565,-1013.4,0.00011612,2]
[353691284,1739991081574,-800.82,0.00011612,2]
[353691285,1739991081583,-500.0,0.00011612,2]
[353691286,1739991081593,-1291.22,0.00011612,2]
[353691287,1739991081603,-500.0,0.00011612,2]
[353691288,1739991081612,-500.0,0.00011612,2]
[353691289,1739991081622,-500.0,0.00011612,2]
[353691290,1739991081631,-1100.17,0.00011612,2]
[353691291,1739991081640,-659.34,0.00011612,2]
[353691292,1739991081650,-500.0,0.00011612,2]
[353691293,1739991081661,-1285.43,0.00011612,2]
[353691294,1739991081670,-2055.78,0.00011612,2]
[353691295,1739991081679,-1176.26,0.00011612,2]
[353691296,1739991081688,-1598.02,0.00011612,2]
[353691297,1739991081697,-1177.64,0.00011612,2]
[353691298,1739991081707,-1728.13,0.00011612,2]
[353691299,1739991081716,-1464.57,0.00011612,2]
[353691300,1739991081725,-988.1,0.00011612,2]
[353691301,1739991081734,-1523.71,0.00011612,2]
[353691302,1739991081744,-1697.79,0.00011612,2]
[353691303,1739991081753,-914.84,0.00011612,2]
[353691304,1739991081762,-1345.01,0.00011612,2]
[353691305,1739991081771,-1899.5,0.00011612,2]
[353691306,1739991081780,-454.6805348,0.00011612,2]
[353691307,1739991081790,-835.97,0.00011612,2]
[353691308,1739991081799,-1253.59,0.00011612,2]
[353691309,1739991081808,-676.35,0.00011612,2]
[353691310,1739991081818,-1199.2,0.00011612,2]
[353691311,1739991081827,-1444.06,0.00011612,2]
[353691312,1739991081837,-1165.51,0.00011612,2]
[353691313,1739991081846,-1110.09,0.00011612,2]
[353691314,1739991081856,-955.77,0.00011612,2]
[353691315,1739991081865,-1702.36,0.00011612,2]
[353691316,1739991081874,-500.0,0.00011612,2]
[353691317,1739991081884,-1068.07,0.00011612,2]
[353691318,1739991081893,-541.29,0.00011612,2]
[353691319,1739991081904,-1380.32,0.00011612,2]
[353691320,1739991081914,-500.0,0.00011613,2]
[353691321,1739991081923,-564.03,0.00011613,2]
[353691322,1739991081933,-500.0,0.00011613,2]
[353691323,1739991081942,-711.12,0.00011613,2]
[353691324,1739991081951,-500.0,0.00011613,2]
[353691325,1739991081960,-500.0,0.00011613,2]
[353691326,1739991081969,-500.0,0.00011613,2]
[353691327,1739991081979,-567.75,0.00011613,2]
[353691328,1739991081988,-774.79,0.00011613,2]
[353691329,1739991081997,-648.92,0.00011613,2]
[353691330,1739991082007,-500.0,0.00011613,2]
[353691331,1739991082016,-500.0,0.00011613,2]
[353691332,1739991082026,-500.0,0.00011613,2]
[353691333,1739991082035,-151.0,0.00011613,2]
[353691334,1739991082045,-500.0,0.00011613,2]
[353691335,1739991082055,-939.76,0.00011613,2]
[353691336,1739991082064,-500.0,0.00011613,2]
[353691337,1739991082073,-500.0,0.00011613,2]
[353691338,1739991082083,-500.0,0.00011613,2]